[Event "NJSK 2026 Jeugd B"]
[Site "Helmond, Netherlands"]
[Date "2026.04.29"]
[Round "5.5"]
[White "Etienne, Ghilon"]
[Black "Kurt, Sascha"]
[Result "0-1"]
[TimeControl "90min/40moves + 30min + 30sec/move"]
[WhiteTitle "-"]
[BlackTitle "-"]
[WhiteFideId "1084267"]
[BlackFideId "1082647"]
[WhiteElo "1976"]
[BlackElo "2280"]

1. Nf3 {[%clk 01:30:30]} {[%emt 00:00:29]} Nf6 {[%clk 01:30:56]} {[%emt
00:00:04]} 2. g3 {[%clk 01:30:54]} {[%emt 00:00:06]} g6 {[%clk 01:31:22]}
{[%emt 00:00:04]} 3. Bg2 {[%clk 01:31:20]} {[%emt 00:00:04]} Bg7 {[%clk
01:31:48]} {[%emt 00:00:04]} 4. O-O {[%clk 01:31:36]} {[%emt 00:00:14]} O-O
{[%clk 01:32:13]} {[%emt 00:00:04]} 5. d3 {[%clk 01:31:59]} {[%emt 00:00:08]}
c5 {[%clk 01:32:15]} {[%emt 00:00:28]} 6. e4 {[%clk 01:32:22]} {[%emt
00:00:07]} Nc6 {[%clk 01:32:35]} {[%emt 00:00:11]} 7. Be3 {[%clk 01:32:04]}
{[%emt 00:00:48]} Ng4 {[%clk 01:31:21]} {[%emt 00:01:44]} 8. Bc1 {[%clk
01:32:28]} {[%emt 00:00:05]} d6 {[%clk 01:31:19]} {[%emt 00:00:32]} 9. h3
{[%clk 01:32:41]} {[%emt 00:00:17]} Nf6 {[%clk 01:31:27]} {[%emt 00:00:23]} 10.
Nc3 {[%clk 01:32:59]} {[%emt 00:00:12]} Rb8 {[%clk 01:31:21]} {[%emt 00:00:35]}
11. a4 {[%clk 01:33:23]} {[%emt 00:00:06]} a6 {[%clk 01:31:23]} {[%emt
00:00:28]} 12. Be3 {[%clk 01:29:18]} {[%emt 00:04:35]} b5 {[%clk 01:29:47]}
{[%emt 00:02:06]} 13. axb5 {[%clk 01:29:45]} {[%emt 00:00:04]} axb5 {[%clk
01:30:15]} {[%emt 00:00:02]} 14. Qc1 {[%clk 01:27:55]} {[%emt 00:02:19]} b4
{[%clk 01:29:43]} {[%emt 00:01:02]} 15. Nd5 {[%clk 01:26:31]} {[%emt 00:01:53]}
Nd7 {[%clk 01:10:00]} {[%emt 00:20:14]} 16. Bh6 {[%clk 01:24:56]} {[%emt
00:02:05]} Nd4 {[%clk 01:07:50]} {[%emt 00:02:39]} 17. Nxd4 {[%clk 01:18:15]}
{[%emt 00:07:10]} cxd4 {[%clk 01:08:11]} {[%emt 00:00:10]} 18. Bd2 {[%clk
01:11:52]} {[%emt 00:06:56]} e6 {[%clk 00:52:51]} {[%emt 00:15:48]} 19. Nxb4
{[%clk 01:12:04]} {[%emt 00:00:17]} Qb6 {[%clk 00:52:16]} {[%emt 00:01:05]} 20.
b3 {[%clk 00:51:28]} {[%emt 00:21:06]} Nc5 {[%clk 00:51:16]} {[%emt 00:01:31]}
21. Qa3 {[%clk 00:50:57]} {[%emt 00:01:00]} Qc7 {[%clk 00:47:00]} {[%emt
00:04:47]} 22. Qb2 {[%clk 00:44:47]} {[%emt 00:06:40]} Bb7 {[%clk 00:41:05]}
{[%emt 00:06:25]} 23. Ra3 {[%clk 00:36:07]} {[%emt 00:09:10]} f5 {[%clk
00:39:20]} {[%emt 00:02:15]} 24. exf5 {[%clk 00:29:47]} {[%emt 00:06:50]} Bxg2
{[%clk 00:39:31]} {[%emt 00:00:19]} 25. Kxg2 {[%clk 00:30:13]} {[%emt
00:00:04]} Rxb4 {[%clk 00:38:05]} {[%emt 00:01:57]} 26. Bxb4 {[%clk 00:30:37]}
{[%emt 00:00:06]} Qb7+ {[%clk 00:38:33]} {[%emt 00:00:01]} 27. Kg1 {[%clk
00:30:52]} {[%emt 00:00:15]} Qxb4 {[%clk 00:38:59]} {[%emt 00:00:05]} 28. fxg6
{[%clk 00:30:48]} {[%emt 00:00:33]} hxg6 {[%clk 00:39:17]} {[%emt 00:00:12]} 29.
Ra7 {[%clk 00:26:45]} {[%emt 00:04:34]} Qd2 {[%clk 00:32:00]} {[%emt 00:07:47]}
30. b4 {[%clk 00:18:37]} {[%emt 00:08:38]} Nxd3 {[%clk 00:27:09]} {[%emt
00:05:20]} 31. Rxg7+ {[%clk 00:18:52]} {[%emt 00:00:15]} Kxg7 {[%clk 00:27:38]}
{[%emt 00:00:01]} 32. Qxd4+ {[%clk 00:19:10]} {[%emt 00:00:12]} Ne5 {[%clk
00:28:04]} {[%emt 00:00:04]} 33. Qxd2 {[%clk 00:19:21]} {[%emt 00:00:19]} Nf3+
{[%clk 00:28:33]} {[%emt 00:00:01]} 34. Kg2 {[%clk 00:19:36]} {[%emt 00:00:14]}
Nxd2 {[%clk 00:28:59]} {[%emt 00:00:05]} 35. Rd1 {[%clk 00:17:05]} {[%emt
00:03:01]} Nc4 {[%clk 00:28:41]} {[%emt 00:00:48]} 36. Ra1 {[%clk 00:16:47]}
{[%emt 00:00:49]} Kf6 {[%clk 00:27:59]} {[%emt 00:01:12]} 37. Ra7 {[%clk
00:16:02]} {[%emt 00:01:14]} Rc8 {[%clk 00:27:47]} {[%emt 00:00:42]} 38. Kf1
{[%clk 00:15:41]} {[%emt 00:00:51]} Ne5 {[%clk 00:18:32]} {[%emt 00:09:45]} 39.
Ra2 {[%clk 00:12:41]} {[%emt 00:03:30]} Nc6 {[%clk 00:15:50]} {[%emt 00:03:11]}
40. c3 {[%clk 00:12:57]} {[%emt 00:00:15]} Ne7 {[%clk 00:16:03]} {[%emt
00:00:16]} 41. Ra6 {[%clk 00:12:13]} {[%emt 00:01:15]} Ke5 {[%clk 00:14:33]}
{[%emt 00:01:59]} 42. f4+ {[%clk 00:12:29]} {[%emt 00:00:14]} Kd5 {[%clk
00:14:19]} {[%emt 00:00:44]} 43. Ra7 {[%clk 00:11:14]} {[%emt 00:01:47]} Nf5
{[%clk 00:13:31]} {[%emt 00:01:16]} 44. g4 {[%clk 00:11:01]} {[%emt 00:00:43]}
Ng3+ {[%clk 00:13:02]} {[%emt 00:00:59]} 45. Kg2 {[%clk 00:11:26]} {[%emt
00:00:06]} Ne2 {[%clk 00:12:58]} {[%emt 00:00:34]} 46. Ra5+ {[%clk 00:11:43]}
{[%emt 00:00:13]} Ke4 {[%clk 00:13:03]} {[%emt 00:00:26]} 47. f5 {[%clk
00:10:41]} {[%emt 00:01:31]} exf5 {[%clk 00:12:52]} {[%emt 00:00:40]} 48. gxf5
{[%clk 00:11:02]} {[%emt 00:00:10]} gxf5 {[%clk 00:13:10]} {[%emt 00:00:13]} 49.
Ra6 {[%clk 00:11:10]} {[%emt 00:00:21]} Nf4+ {[%clk 00:13:11]} {[%emt
00:00:28]} 50. Kh2 {[%clk 00:11:35]} {[%emt 00:00:06]} Rxc3 {[%clk 00:13:05]}
{[%emt 00:00:36]} 51. Rxd6 {[%clk 00:11:57]} {[%emt 00:00:08]} Rxh3+ {[%clk
00:13:18]} {[%emt 00:00:17]} 52. Kg1 {[%clk 00:12:22]} {[%emt 00:00:05]} Rb3
{[%clk 00:13:37]} {[%emt 00:00:11]} 53. Rb6 {[%clk 00:12:31]} {[%emt 00:00:21]}
Kf3 {[%clk 00:13:56]} {[%emt 00:00:11]} 54. Rb8 {[%clk 00:11:38]} {[%emt
00:01:24]} Rb1+ {[%clk 00:14:10]} {[%emt 00:00:15]} 55. Kh2 {[%clk 00:12:03]}
{[%emt 00:00:05]} Rb2+ {[%clk 00:14:36]} {[%emt 00:00:03]} 56. Kh1 {[%clk
00:12:29]} {[%emt 00:00:04]} Nh5 {[%clk 00:14:54]} {[%emt 00:00:13]} 0-1

[Event "NJSK 2026 Jeugd B"]
[Site "Helmond, Netherlands"]
[Date "2026.04.29"]
[Round "5.6"]
[White "Wierenga, Luuk"]
[Black "Frederiks, Jesse"]
[Result "0-1"]
[TimeControl "90min/40moves + 30min + 30sec/move"]
[WhiteTitle "-"]
[BlackTitle "-"]
[WhiteFideId "1094874"]
[BlackFideId "1095790"]
[WhiteElo "1977"]
[BlackElo "2018"]

1. d4 {[%clk 01:30:53]} {[%emt 00:00:06]} Nf6 {[%clk 01:30:49]} {[%emt
00:00:11]} 2. Nf3 {[%clk 01:31:18]} {[%emt 00:00:05]} e6 {[%clk 01:31:10]}
{[%emt 00:00:09]} 3. g3 {[%clk 01:31:38]} {[%emt 00:00:10]} b5 {[%clk
01:30:43]} {[%emt 00:00:56]} 4. Bg2 {[%clk 01:31:55]} {[%emt 00:00:13]} Bb7
{[%clk 01:31:06]} {[%emt 00:00:07]} 5. O-O {[%clk 01:32:05]} {[%emt 00:00:19]}
Be7 {[%clk 01:31:04]} {[%emt 00:00:31]} 6. Bg5 {[%clk 01:27:12]} {[%emt
00:05:26]} O-O {[%clk 01:26:07]} {[%emt 00:05:25]} 7. Qd3 {[%clk 01:20:17]}
{[%emt 00:07:25]} Be4 {[%clk 01:16:04]} {[%emt 00:10:34]} 8. Qxb5 {[%clk
01:15:51]} {[%emt 00:04:56]} Nc6 {[%clk 01:15:00]} {[%emt 00:01:35]} 9. Qa4
{[%clk 01:02:58]} {[%emt 00:13:23]} Rb8 {[%clk 01:11:49]} {[%emt 00:03:40]} 10.
Bxf6 {[%clk 00:59:49]} {[%emt 00:03:39]} Bxf6 {[%clk 01:11:37]} {[%emt
00:00:40]} 11. Nbd2 {[%clk 00:57:45]} {[%emt 00:02:36]} Bxf3 {[%clk 01:04:40]}
{[%emt 00:07:26]} 12. Nxf3 {[%clk 00:57:09]} {[%emt 00:01:06]} Rxb2 {[%clk
01:03:59]} {[%emt 00:01:12]} 13. Rab1 {[%clk 00:50:13]} {[%emt 00:07:27]} Qb8
{[%clk 00:54:57]} {[%emt 00:09:31]} 14. Rxb2 {[%clk 00:50:11]} {[%emt
00:00:32]} Qxb2 {[%clk 00:55:21]} 15. e3 {[%clk 00:45:34]} {[%emt 00:05:13]}
Rb8 {[%clk 00:50:22]} {[%emt 00:05:29]} 16. Ne5 {[%clk 00:44:17]} {[%emt
00:01:47]} Nxe5 {[%clk 00:47:50]} {[%emt 00:03:02]} 17. dxe5 {[%clk 00:44:38]}
{[%emt 00:00:11]} Bxe5 {[%clk 00:47:12]} {[%emt 00:01:06]} 18. Qxa7 {[%clk
00:43:07]} {[%emt 00:02:02]} d5 {[%clk 00:37:22]} {[%emt 00:10:21]} 19. a4
{[%clk 00:35:42]} {[%emt 00:07:54]} h6 {[%clk 00:25:52]} {[%emt 00:12:00]} 20.
a5 {[%clk 00:34:01]} {[%emt 00:02:12]} c6 {[%clk 00:21:33]} {[%emt 00:04:49]}
21. Qc5 {[%clk 00:30:37]} {[%emt 00:03:52]} Qb5 {[%clk 00:21:09]} {[%emt
00:00:55]} 22. Qxb5 {[%clk 00:28:52]} {[%emt 00:02:16]} Rxb5 {[%clk 00:21:01]}
{[%emt 00:00:36]} 23. Rc1 {[%clk 00:28:34]} {[%emt 00:00:50]} Rxa5 {[%clk
00:21:01]} {[%emt 00:00:29]} 24. c4 {[%clk 00:28:40]} {[%emt 00:00:24]} Rc5
{[%clk 00:19:55]} {[%emt 00:01:35]} 25. Bf1 {[%clk 00:28:19]} {[%emt 00:00:53]}
Kf8 {[%clk 00:19:29]} {[%emt 00:00:56]} 26. f4 {[%clk 00:27:27]} {[%emt
00:01:22]} Bf6 {[%clk 00:18:52]} {[%emt 00:01:07]} 27. Kf2 {[%clk 00:25:48]}
{[%emt 00:02:08]} Ke7 {[%clk 00:17:20]} {[%emt 00:02:02]} 28. Kf3 {[%clk
00:23:32]} {[%emt 00:02:46]} e5 {[%clk 00:10:29]} {[%emt 00:07:21]} 29. fxe5
{[%clk 00:22:22]} {[%emt 00:01:41]} Bxe5 {[%clk 00:10:54]} {[%emt 00:00:03]} 30.
e4 {[%clk 00:20:33]} {[%emt 00:02:20]} dxc4 {[%clk 00:07:10]} {[%emt 00:04:15]}
31. Rxc4 {[%clk 00:20:12]} {[%emt 00:00:51]} Kd6 {[%clk 00:07:13]} {[%emt
00:00:26]} 32. Rxc5 {[%clk 00:15:57]} {[%emt 00:04:46]} Kxc5 {[%clk 00:07:40]}
{[%emt 00:00:02]} 33. Ke3 {[%clk 00:15:48]} {[%emt 00:00:39]} Kb4 {[%clk
00:07:39]} {[%emt 00:00:31]} 34. Kd2 {[%clk 00:12:31]} {[%emt 00:03:47]} c5
{[%clk 00:06:55]} {[%emt 00:01:14]} 35. Ba6 {[%clk 00:11:17]} {[%emt 00:01:46]}
c4 {[%clk 00:06:52]} {[%emt 00:00:32]} 36. Kc2 {[%clk 00:06:12]} {[%emt
00:05:35]} Kc5 {[%clk 00:07:04]} {[%emt 00:00:19]} 37. Bb7 {[%clk 00:06:15]}
{[%emt 00:00:27]} Kd4 {[%clk 00:07:20]} {[%emt 00:00:13]} 38. Bd5 {[%clk
00:04:41]} {[%emt 00:02:05]} f5 {[%clk 00:07:15]} {[%emt 00:00:35]} 39. Bxc4
{[%clk 00:03:49]} {[%emt 00:01:22]} Kxc4 {[%clk 00:07:36]} {[%emt 00:00:09]} 40.
exf5 {[%clk 00:04:17]} {[%emt 00:00:02]} Kd4 {[%clk 00:07:43]} {[%emt
00:00:23]} 41. Kd2 {[%clk 00:03:50]} {[%emt 00:00:57]} Ke4 {[%clk 00:08:02]}
{[%emt 00:00:11]} 42. Ke2 {[%clk 00:04:12]} {[%emt 00:00:08]} Kxf5 {[%clk
00:08:25]} {[%emt 00:00:06]} 43. Kf3 {[%clk 00:04:39]} {[%emt 00:00:03]} Bb8
{[%clk 00:08:08]} {[%emt 00:00:47]} 44. h3 {[%clk 00:04:36]} {[%emt 00:00:33]}
Bc7 {[%clk 00:08:31]} {[%emt 00:00:08]} 45. h4 {[%clk 00:04:41]} {[%emt
00:00:25]} h5 {[%clk 00:08:53]} {[%emt 00:00:07]} 0-1

[Event "NJSK 2026 Jeugd B"]
[Site "Helmond, Netherlands"]
[Date "2026.04.29"]
[Round "5.7"]
[White "Okita, Shinsaku"]
[Black "De Jong, Lode"]
[Result "0-1"]
[TimeControl "90min/40moves + 30min + 30sec/move"]
[WhiteTitle "-"]
[BlackTitle "-"]
[WhiteFideId "1094823"]
[BlackFideId "40101860"]
[WhiteElo "1899"]
[BlackElo "1902"]

1. d4 {[%clk 01:30:56]} {[%emt 00:00:03]} Nf6 {[%clk 01:30:55]} {[%emt
00:00:06]} 2. Nf3 {[%clk 01:31:21]} {[%emt 00:00:04]} e6 {[%clk 01:31:21]}
{[%emt 00:00:05]} 3. Bf4 {[%clk 01:31:47]} {[%emt 00:00:04]} c5 {[%clk
01:31:44]} {[%emt 00:00:07]} 4. c3 {[%clk 01:32:09]} {[%emt 00:00:08]} d5
{[%clk 01:31:25]} {[%emt 00:00:49]} 5. e3 {[%clk 01:32:20]} {[%emt 00:00:19]}
Nc6 {[%clk 01:31:50]} {[%emt 00:00:05]} 6. Nbd2 {[%clk 01:32:30]} {[%emt
00:00:20]} Nh5 {[%clk 01:32:14]} {[%emt 00:00:05]} 7. Bg5 {[%clk 01:31:46]}
{[%emt 00:01:15]} f6 {[%clk 01:31:35]} {[%emt 00:01:09]} 8. Bh4 {[%clk
01:30:29]} {[%emt 00:01:48]} g6 {[%clk 01:31:29]} {[%emt 00:00:35]} 9. Be2
{[%clk 01:23:21]} {[%emt 00:07:38]} cxd4 {[%clk 01:30:46]} {[%emt 00:01:08]} 10.
Nxd4 {[%clk 01:20:56]} {[%emt 00:03:00]} Ng7 {[%clk 01:29:21]} {[%emt
00:01:54]} 11. f4 {[%clk 01:15:37]} {[%emt 00:05:50]} Be7 {[%clk 01:24:39]}
{[%emt 00:05:12]} 12. e4 {[%clk 01:07:45]} {[%emt 00:08:21]} Nxd4 {[%clk
01:16:38]} {[%emt 00:08:32]} 13. cxd4 {[%clk 01:07:40]} {[%emt 00:00:33]} dxe4
{[%clk 01:17:03]} {[%emt 00:00:06]} 14. Nxe4 {[%clk 01:07:16]} {[%emt
00:00:53]} Bb4+ {[%clk 01:00:07]} {[%emt 00:17:27]} 15. Nc3 {[%clk 01:01:04]}
{[%emt 00:06:42]} O-O {[%clk 01:00:30]} {[%emt 00:00:06]} 16. O-O {[%clk
00:59:57]} {[%emt 00:01:37]} Nf5 {[%clk 00:55:19]} {[%emt 00:05:41]} 17. Bf2
{[%clk 00:59:15]} {[%emt 00:01:13]} Qd6 {[%clk 00:55:47]} {[%emt 00:00:01]} 18.
g4 {[%clk 00:54:03]} {[%emt 00:05:42]} Ne7 {[%clk 00:55:44]} {[%emt 00:00:33]}
19. Be3 {[%clk 00:40:13]} {[%emt 00:14:20]} Nd5 {[%clk 00:50:38]} {[%emt
00:05:37]} 20. Nxd5 {[%clk 00:34:27]} {[%emt 00:06:16]} exd5 {[%clk 00:50:44]}
{[%emt 00:00:23]} 21. Bf3 {[%clk 00:31:58]} {[%emt 00:02:59]} Ba5 {[%clk
00:47:19]} {[%emt 00:03:55]} 22. Bg2 {[%clk 00:28:37]} {[%emt 00:03:49]} Re8
{[%clk 00:45:17]} {[%emt 00:02:35]} 23. Qf3 {[%clk 00:26:51]} {[%emt 00:02:16]}
Bxg4 {[%clk 00:44:20]} {[%emt 00:01:27]} 24. Qxd5+ {[%clk 00:26:23]} {[%emt
00:00:57]} Qxd5 {[%clk 00:38:44]} {[%emt 00:06:07]} 25. Bxd5+ {[%clk 00:26:47]}
{[%emt 00:00:05]} Kf8 {[%clk 00:37:43]} {[%emt 00:01:31]} 26. Kf2 {[%clk
00:25:20]} {[%emt 00:01:57]} Rad8 {[%clk 00:37:53]} {[%emt 00:00:19]} 27. Bf3
{[%clk 00:24:19]} {[%emt 00:01:31]} Bxf3 {[%clk 00:34:31]} {[%emt 00:03:53]} 28.
Kxf3 {[%clk 00:24:43]} {[%emt 00:00:05]} Bb6 {[%clk 00:33:29]} {[%emt
00:01:33]} 29. Rfd1 {[%clk 00:24:24]} {[%emt 00:00:49]} Rd5 {[%clk 00:28:25]}
{[%emt 00:05:34]} 30. Rac1 {[%clk 00:21:14]} {[%emt 00:03:40]} Ke7 {[%clk
00:22:19]} {[%emt 00:06:36]} 31. b4 {[%clk 00:18:30]} {[%emt 00:03:14]} Rb5
{[%clk 00:20:42]} {[%emt 00:02:07]} 32. Rc4 {[%clk 00:16:43]} {[%emt 00:02:17]}
Kd6 {[%clk 00:19:50]} {[%emt 00:01:22]} 33. a4 {[%clk 00:12:43]} {[%emt
00:04:30]} Rh5 {[%clk 00:20:13]} {[%emt 00:00:06]} 34. Bg1 {[%clk 00:12:09]}
{[%emt 00:01:04]} Rh3+ {[%clk 00:18:22]} {[%emt 00:02:21]} 35. Kg2 {[%clk
00:11:58]} {[%emt 00:00:41]} Rb3 {[%clk 00:18:15]} {[%emt 00:00:37]} 36. a5
{[%clk 00:10:58]} {[%emt 00:01:31]} Bd8 {[%clk 00:14:56]} {[%emt 00:03:48]} 37.
d5 {[%clk 00:09:53]} {[%emt 00:01:35]} a6 {[%clk 00:14:16]} {[%emt 00:01:11]}
38. Bc5+ {[%clk 00:09:51]} {[%emt 00:00:31]} Kd7 {[%clk 00:14:38]} {[%emt
00:00:07]} 39. Rd2 {[%clk 00:05:44]} {[%emt 00:04:37]} f5 {[%clk 00:13:33]}
{[%emt 00:01:36]} 40. d6 {[%clk 00:01:21]} {[%emt 00:04:53]} Re4 {[%clk
00:12:29]} {[%emt 00:01:34]} 41. Bd4 {[%clk 00:00:55]} {[%emt 00:00:55]} Rxf4
{[%clk 00:08:58]} {[%emt 00:04:01]} 42. Rc5 {[%clk 00:22:18]} {[%emt 00:09:08]}
Rxb4 {[%clk 00:33:37]} {[%emt 00:05:51]} 43. Be5 {[%clk 00:19:18]} {[%emt
00:03:30]} Rfc4 {[%clk 00:33:43]} {[%emt 00:00:24]} 44. Rc7+ {[%clk 00:17:59]}
{[%emt 00:01:49]} Bxc7 {[%clk 00:33:40]} {[%emt 00:00:33]} 45. dxc7+ {[%emt
00:00:16]} Ke6 {[%clk 00:34:05]} 46. Re2 {[%emt 00:07:50]} Rc6 {[%clk
00:29:27]} {[%emt 00:00:02]} 47. Bd4+ {[%clk 00:13:22]} {[%emt 00:03:10]} Kd7
{[%clk 00:29:14]} {[%emt 00:00:44]} 48. Rd2 {[%clk 00:12:41]} {[%emt 00:01:09]}
Rxd4 {[%clk 00:28:55]} {[%emt 00:00:50]} 49. Rxd4+ {[%clk 00:13:04]} {[%emt
00:00:08]} Kxc7 {[%clk 00:29:20]} {[%emt 00:00:05]} 50. Rd5 {[%clk 00:13:20]}
{[%emt 00:00:13]} b6 {[%clk 00:29:18]} {[%emt 00:00:31]} 51. axb6+ {[%clk
00:13:44]} {[%emt 00:00:07]} Kxb6 {[%clk 00:29:47]} {[%emt 00:00:01]} 0-1